[Event "TOP 12 FEMININ 2022 - Phase 1"]
[Site "MULHOUSE, France"]
[Date "2022.04.09"]
[Round "3.19"]
[White "SABIANI  CAN, Chjara"]
[Black "KOCH STR, Marion"]
[Result "1/2-1/2"]
[TimeControl "90 min +30 secondes par coup"]
[WhiteElo "1793"]
[BlackElo "1695"]

1. d4 {[%clk 01:30:36]} {[%emt 00:00:25]} d5 {[%clk 01:30:56]} {[%emt
00:00:04]} 2. c4 {[%clk 01:30:32]} {[%emt 00:00:34]} e6 {[%clk 01:31:03]}
{[%emt 00:00:23]} 3. Nc3 {[%clk 01:30:57]} {[%emt 00:00:05]} Nf6 {[%clk
01:31:00]} {[%emt 00:00:33]} 4. cxd5 {[%clk 01:31:12]} {[%emt 00:00:15]} exd5
{[%clk 01:31:08]} {[%emt 00:00:22]} 5. Bg5 {[%clk 01:31:31]} {[%emt 00:00:10]}
Be7 {[%clk 01:30:52]} {[%emt 00:00:47]} 6. e3 {[%clk 01:29:44]} {[%emt
00:02:17]} c6 {[%emt 00:01:09]} 7. Bd3 {[%clk 01:29:47]} {[%emt 00:00:23]} Nbd7
{[%clk 01:28:15]} {[%emt 00:02:31]} 8. Qc2 {[%clk 01:28:55]} {[%emt 00:01:22]}
a5 {[%clk 01:24:29]} {[%emt 00:04:17]} 9. Nf3 {[%clk 01:25:04]} {[%emt
00:04:20]} O-O {[%clk 01:13:45]} {[%emt 00:11:14]} 10. O-O {[%clk 01:25:15]}
{[%emt 00:00:19]} Re8 {[%clk 01:12:21]} {[%emt 00:01:54]} 11. Rab1 {[%clk
01:21:06]} {[%emt 00:04:40]} Nf8 {[%clk 01:08:20]} {[%emt 00:04:31]} 12. h3
{[%clk 01:19:14]} {[%emt 00:02:21]} Ng6 {[%clk 01:04:22]} {[%emt 00:04:28]} 13.
a3 {[%clk 01:15:47]} {[%emt 00:03:58]} Bd6 {[%clk 00:50:44]} {[%emt 00:14:08]}
14. b4 {[%clk 01:12:24]} {[%emt 00:03:53]} axb4 {[%clk 00:49:57]} {[%emt
00:01:16]} 15. axb4 {[%clk 01:11:20]} {[%emt 00:01:34]} h6 {[%clk 00:47:21]}
{[%emt 00:03:07]} 16. Bxf6 {[%clk 01:09:10]} {[%emt 00:02:39]} Qxf6 {[%clk
00:47:40]} {[%emt 00:00:12]} 17. b5 {[%clk 01:08:26]} {[%emt 00:01:14]} Bxh3
{[%clk 00:42:14]} {[%emt 00:05:56]} 18. Bxg6 {[%clk 00:52:18]} {[%emt
00:16:38]} fxg6 {[%clk 00:42:20]} {[%emt 00:00:24]} 19. gxh3 {[%clk 00:52:39]}
{[%emt 00:00:09]} Qxf3 {[%clk 00:42:33]} {[%emt 00:00:16]} 20. Qxg6 {[%clk
00:52:53]} {[%emt 00:00:16]} Qxh3 {[%clk 00:42:32]} {[%emt 00:00:31]} 21. Qxd6
{[%clk 00:52:31]} {[%emt 00:00:53]} Re6 {[%clk 00:39:45]} {[%emt 00:03:14]} 22.
Qg3 {[%clk 00:48:47]} {[%emt 00:04:17]} Qh5 {[%clk 00:36:50]} {[%emt 00:03:25]}
23. bxc6 {[%clk 00:48:42]} {[%emt 00:00:35]} Rg6 {[%clk 00:31:40]} {[%emt
00:05:39]} 24. cxb7 {[%clk 00:47:37]} {[%emt 00:01:36]} Rxg3+ {[%clk 00:31:24]}
{[%emt 00:00:46]} 25. fxg3 {[%clk 00:48:02]} {[%emt 00:00:04]} Rb8 {[%clk
00:31:40]} {[%emt 00:00:14]} 26. Kg2 {[%clk 00:37:49]} {[%emt 00:10:43]} Qg5
{[%clk 00:29:16]} {[%emt 00:02:52]} 27. Rf3 {[%clk 00:36:56]} {[%emt 00:01:25]}
Qg6 {[%clk 00:24:16]} {[%emt 00:05:29]} 28. Rb2 {[%clk 00:35:25]} {[%emt
00:02:03]} Qc6 {[%clk 00:23:38]} {[%emt 00:01:05]} 29. Ne2 {[%clk 00:35:00]}
{[%emt 00:00:57]} Rxb7 {[%clk 00:23:43]} {[%emt 00:00:26]} 30. Rxb7 {[%clk
00:35:28]} {[%emt 00:00:01]} Qxb7 {[%clk 00:24:06]} {[%emt 00:00:07]} 31. Nf4
{[%clk 00:35:13]} {[%emt 00:00:46]} Qb2+ {[%clk 00:22:08]} {[%emt 00:02:27]} 32.
Kh3 {[%clk 00:33:04]} {[%emt 00:02:39]} Qb5 {[%clk 00:19:58]} {[%emt 00:02:39]}
33. Ng6 {[%clk 00:28:57]} {[%emt 00:04:38]} Kh7 {[%clk 00:17:27]} {[%emt
00:03:01]} 34. Nf8+ {[%clk 00:25:04]} {[%emt 00:04:22]} 1/2-1/2

[Event "TOP 12 FEMININ 2022 - Phase 1"]
[Site "MULHOUSE, France"]
[Date "2022.04.09"]
[Round "3.20"]
[White "SCHMITT  STR, Eleonre"]
[Black "SOREDA  CAN, Elisa"]
[Result "1-0"]
[TimeControl "90 min +30 secondes par coup"]
[WhiteElo "1463"]
[BlackElo "1655"]

1. e4 {[%clk 01:30:57]} {[%emt 00:00:01]} d5 {[%clk 01:30:06]} {[%emt
00:00:55]} 2. exd5 {[%clk 01:31:20]} {[%emt 00:00:07]} Qxd5 {[%clk 01:29:07]}
{[%emt 00:01:29]} 3. Nc3 {[%clk 01:31:38]} {[%emt 00:00:12]} Qd6 {[%clk
01:28:27]} {[%emt 00:01:09]} 4. Nf3 {[%clk 01:28:30]} {[%emt 00:03:38]} Nf6
{[%clk 01:25:29]} {[%emt 00:03:29]} 5. Bc4 {[%clk 01:25:44]} {[%emt 00:03:15]}
c6 {[%clk 01:18:15]} {[%emt 00:07:45]} 6. d3 {[%clk 01:23:25]} {[%emt
00:02:49]} Bg4 {[%clk 01:13:17]} {[%emt 00:05:28]} 7. h3 {[%clk 01:21:38]}
{[%emt 00:02:17]} Bh5 {[%clk 01:09:20]} {[%emt 00:04:26]} 8. g4 {[%clk
01:18:35]} {[%emt 00:03:34]} Bg6 {[%clk 01:04:02]} {[%emt 00:05:48]} 9. Nh4
{[%clk 01:13:46]} {[%emt 00:05:19]} e6 {[%clk 00:55:34]} {[%emt 00:08:57]} 10.
Nxg6 {[%clk 01:13:45]} {[%emt 00:00:32]} hxg6 {[%clk 00:55:41]} {[%emt
00:00:22]} 11. Qe2 {[%clk 01:11:09]} {[%emt 00:03:06]} Nbd7 {[%clk 00:51:05]}
{[%emt 00:05:06]} 12. g5 {[%clk 00:54:46]} {[%emt 00:16:53]} Nd5 {[%clk
00:41:55]} {[%emt 00:09:39]} 13. Bd2 {[%clk 00:46:53]} {[%emt 00:08:24]} O-O-O
{[%clk 00:35:07]} {[%emt 00:07:18]} 14. O-O-O {[%clk 00:47:05]} {[%emt
00:00:19]} Be7 {[%clk 00:30:31]} {[%emt 00:05:04]} 15. h4 {[%clk 00:45:10]}
{[%emt 00:02:27]} Rh5 {[%clk 00:28:01]} {[%emt 00:02:58]} 16. Ne4 {[%clk
00:40:52]} {[%emt 00:04:49]} Qc7 {[%clk 00:26:50]} {[%emt 00:01:37]} 17. Bb3
{[%clk 00:29:41]} {[%emt 00:11:45]} Rdh8 {[%clk 00:22:41]} {[%emt 00:04:40]} 18.
Qf3 {[%clk 00:27:01]} {[%emt 00:03:10]} Ne5 {[%clk 00:21:24]} {[%emt 00:01:47]}
19. Qg3 {[%clk 00:26:32]} {[%emt 00:00:59]} Bb4 {[%clk 00:14:46]} {[%emt
00:07:06]} 20. c3 {[%clk 00:23:08]} {[%emt 00:03:55]} Bf8 {[%clk 00:06:59]}
{[%emt 00:08:17]} 21. Bxd5 {[%clk 00:17:52]} {[%emt 00:05:45]} cxd5 {[%clk
00:04:22]} {[%emt 00:03:08]} 22. Bf4 {[%clk 00:15:53]} {[%emt 00:02:29]} dxe4
{[%clk 00:02:34]} {[%emt 00:02:18]} 23. Bxe5 {[%clk 00:16:14]} {[%emt
00:00:09]} Qa5 {[%clk 00:02:48]} {[%emt 00:00:16]} 24. Kb1 {[%clk 00:10:38]}
{[%emt 00:06:06]} Qd5 {[%clk 00:01:49]} {[%emt 00:01:25]} 25. Ka1 {[%clk
00:09:53]} {[%emt 00:01:19]} exd3 {[%clk 00:01:45]} {[%emt 00:00:35]} 26. Bb8
{[%clk 00:08:21]} {[%emt 00:02:01]} Qc6 {[%clk 00:00:46]} {[%emt 00:01:29]} 27.
Bxa7 {[%clk 00:06:37]} {[%emt 00:02:15]} Bd6 {[%clk 00:01:06]} {[%emt
00:00:09]} 28. Qxd3 {[%clk 00:06:38]} {[%emt 00:00:30]} Rxh4 {[%clk 00:00:59]}
{[%emt 00:00:37]} 29. Rxh4 {[%clk 00:06:15]} {[%emt 00:00:53]} Rxh4 {[%clk
00:01:25]} {[%emt 00:00:04]} 30. b4 {[%clk 00:04:51]} {[%emt 00:01:53]} Be7
{[%clk 00:01:34]} {[%emt 00:00:21]} 31. Qg3 {[%clk 00:04:37]} {[%emt 00:00:43]}
Qc7 {[%emt 00:01:23]} 1-0

[Event "TOP 12 FEMININ 2022 - Phase 1"]
[Site "MULHOUSE, France"]
[Date "2022.04.09"]
[Round "3.22"]
[White "KASHLINSKAYA  CLI, Alina"]
[Black "JAVAKHISHVILI  BIS, Lela"]
[Result "1-0"]
[TimeControl "90 min +30 secondes par coup"]
[WhiteElo "2490"]
[BlackElo "2482"]

1. d4 {[%clk 01:30:56]} {[%emt 00:00:03]} Nf6 {[%clk 01:30:54]} {[%emt
00:00:06]} 2. c4 {[%clk 01:31:16]} {[%emt 00:00:11]} e6 {[%clk 01:31:16]}
{[%emt 00:00:08]} 3. Nc3 {[%clk 01:31:36]} {[%emt 00:00:09]} Bb4 {[%clk
01:31:06]} {[%emt 00:00:40]} 4. Qc2 {[%clk 01:31:58]} {[%emt 00:00:08]} d6
{[%clk 01:29:13]} {[%emt 00:02:24]} 5. e3 {[%clk 01:31:08]} {[%emt 00:01:20]}
O-O {[%clk 01:28:49]} {[%emt 00:00:53]} 6. Bd3 {[%clk 01:28:11]} {[%emt
00:03:27]} e5 {[%clk 01:27:32]} {[%emt 00:01:48]} 7. Nge2 {[%clk 01:14:11]}
{[%emt 00:14:31]} Re8 {[%clk 01:21:53]} {[%emt 00:06:08]} 8. O-O {[%clk
01:10:35]} {[%emt 00:04:06]} c6 {[%clk 01:21:14]} {[%emt 00:01:09]} 9. a3
{[%clk 01:09:16]} {[%emt 00:01:49]} Bxc3 {[%clk 01:16:27]} {[%emt 00:05:17]} 10.
Nxc3 {[%clk 01:08:40]} {[%emt 00:01:06]} Qe7 {[%clk 01:16:17]} {[%emt
00:00:39]} 11. f3 {[%clk 00:59:24]} {[%emt 00:09:47]} Nbd7 {[%clk 01:14:12]}
{[%emt 00:02:34]} 12. Bd2 {[%clk 00:55:37]} {[%emt 00:04:17]} Nf8 {[%clk
01:13:10]} {[%emt 00:01:32]} 13. Rae1 {[%clk 00:55:47]} {[%emt 00:00:20]} Be6
{[%clk 01:07:09]} {[%emt 00:06:31]} 14. Ne2 {[%clk 00:49:51]} {[%emt 00:06:26]}
Qc7 {[%clk 01:03:46]} {[%emt 00:03:53]} 15. Ng3 {[%clk 00:47:44]} {[%emt
00:02:38]} Rad8 {[%clk 01:02:00]} {[%emt 00:02:16]} 16. Bc3 {[%clk 00:47:20]}
{[%emt 00:00:54]} Ng6 {[%emt 00:07:37]} 17. b3 {[%clk 00:41:48]} {[%emt
00:05:14]} Bc8 {[%clk 00:52:44]} {[%emt 00:03:26]} 18. Qb2 {[%clk 00:41:54]}
{[%emt 00:00:25]} Nd7 {[%clk 00:50:36]} {[%emt 00:02:37]} 19. Bb1 {[%clk
00:41:03]} {[%emt 00:01:22]} Ndf8 {[%clk 00:50:35]} {[%emt 00:00:31]} 20. dxe5
{[%clk 00:32:30]} {[%emt 00:09:03]} dxe5 {[%clk 00:50:55]} {[%emt 00:00:10]} 21.
c5 {[%clk 00:32:30]} {[%emt 00:00:29]} b6 {[%clk 00:49:26]} {[%emt 00:01:59]}
22. Ne4 {[%clk 00:31:40]} {[%emt 00:01:21]} bxc5 {[%clk 00:36:59]} {[%emt
00:12:56]} 23. Nxc5 {[%clk 00:30:02]} {[%emt 00:02:08]} Nd7 {[%clk 00:34:45]}
{[%emt 00:02:45]} 24. Nxd7 {[%clk 00:27:03]} {[%emt 00:03:28]} Rxd7 {[%clk
00:35:04]} {[%emt 00:00:10]} 25. b4 {[%clk 00:25:17]} {[%emt 00:02:17]} Ba6
{[%clk 00:32:19]} {[%emt 00:03:16]} 26. Rf2 {[%clk 00:25:34]} {[%emt 00:00:13]}
Bd3 {[%clk 00:32:07]} {[%emt 00:00:42]} 27. Ba2 {[%clk 00:25:26]} {[%emt
00:00:38]} a5 {[%clk 00:28:47]} {[%emt 00:03:50]} 28. bxa5 {[%clk 00:24:38]}
{[%emt 00:01:18]} Rb8 {[%clk 00:28:44]} {[%emt 00:00:32]} 29. Qa1 {[%clk
00:23:44]} {[%emt 00:01:24]} c5 {[%clk 00:28:57]} {[%emt 00:00:17]} 30. f4
{[%clk 00:23:12]} {[%emt 00:01:03]} Re8 {[%clk 00:26:02]} {[%emt 00:03:24]} 31.
f5 {[%clk 00:20:46]} {[%emt 00:02:57]} Nf8 {[%clk 00:25:44]} {[%emt 00:00:47]}
32. f6 {[%clk 00:19:32]} {[%emt 00:01:44]} c4 {[%clk 00:25:19]} {[%emt
00:00:55]} 33. fxg7 {[%clk 00:19:25]} {[%emt 00:00:37]} Kxg7 {[%clk 00:23:16]}
{[%emt 00:02:33]} 34. Qd1 {[%clk 00:16:21]} {[%emt 00:03:34]} Rd6 {[%clk
00:21:14]} {[%emt 00:02:32]} 35. Qf3 {[%clk 00:14:20]} {[%emt 00:02:31]} f6
{[%clk 00:16:43]} {[%emt 00:05:01]} 36. Rd1 {[%clk 00:12:11]} {[%emt 00:02:40]}
Nd7 {[%clk 00:14:59]} {[%emt 00:02:13]} 37. Bb4 {[%clk 00:12:18]} {[%emt
00:00:24]} c3 {[%clk 00:02:18]} {[%emt 00:13:11]} 38. Bb1 {[%clk 00:08:19]}
{[%emt 00:04:29]} Nc5 {[%clk 00:00:36]} {[%emt 00:02:11]} 39. Bxc5 {[%clk
00:08:21]} {[%emt 00:00:29]} Qxc5 {[%clk 00:00:49]} {[%emt 00:00:17]} 40. Rxd3
{[%clk 00:08:38]} {[%emt 00:00:13]} Rb8 {[%clk 00:00:36]} {[%emt 00:00:42]} 41.
Qd1 {[%clk 00:06:37]} {[%emt 00:02:32]} Ra6 {[%emt 00:00:37]} 1-0

[Event "TOP 12 FEMININ 2022 - Phase 1"]
[Site "MULHOUSE, France"]
[Date "2022.04.09"]
[Round "3.23"]
[White "MAISURADZE  BIS, Nino"]
[Black "BENMESBAH CLI, Natacha"]
[Result "1/2-1/2"]
[TimeControl "90 min +30 secondes par coup"]
[WhiteElo "2202"]
[BlackElo "2244"]

1. d4 {[%clk 01:30:58]} {[%emt 00:00:03]} d6 {[%clk 01:28:51]} {[%emt
00:02:08]} 2. e4 {[%clk 01:30:28]} {[%emt 00:01:00]} Nf6 {[%clk 01:29:15]}
{[%emt 00:00:06]} 3. Nc3 {[%clk 01:30:39]} {[%emt 00:00:19]} e5 {[%clk
01:29:37]} {[%emt 00:00:08]} 4. Nge2 {[%clk 01:29:07]} {[%emt 00:02:03]} Be7
{[%clk 01:26:42]} {[%emt 00:03:24]} 5. g3 {[%clk 01:28:20]} {[%emt 00:01:17]}
h5 {[%clk 01:13:33]} {[%emt 00:13:39]} 6. h3 {[%clk 01:28:05]} {[%emt
00:00:45]} c6 {[%clk 01:13:03]} {[%emt 00:01:00]} 7. a4 {[%clk 01:25:24]}
{[%emt 00:03:12]} Be6 {[%clk 01:08:24]} {[%emt 00:05:09]} 8. Bg2 {[%clk
01:25:41]} {[%emt 00:00:12]} Qc8 {[%clk 01:06:28]} {[%emt 00:02:26]} 9. Be3
{[%clk 01:19:53]} {[%emt 00:06:18]} Na6 {[%clk 01:03:14]} {[%emt 00:03:45]} 10.
Qd2 {[%clk 01:17:49]} {[%emt 00:02:34]} Nc7 {[%clk 01:01:41]} {[%emt 00:02:03]}
11. a5 {[%clk 00:58:55]} {[%emt 00:19:24]} g6 {[%clk 00:51:36]} {[%emt
00:10:35]} 12. f4 {[%clk 00:48:24]} {[%emt 00:11:00]} exf4 {[%clk 00:51:20]}
{[%emt 00:00:46]} 13. Nxf4 {[%clk 00:47:40]} {[%emt 00:01:14]} Bc4 {[%clk
00:49:55]} {[%emt 00:01:55]} 14. Nd3 {[%clk 00:26:26]} {[%emt 00:21:44]} Be6
{[%clk 00:43:07]} {[%emt 00:07:19]} 15. Nf4 {[%clk 00:16:04]} {[%emt 00:10:51]}
Bc4 {[%clk 00:36:48]} {[%emt 00:06:49]} 16. Rd1 {[%clk 00:07:07]} {[%emt
00:09:28]} O-O {[%clk 00:31:31]} {[%emt 00:05:46]} 17. b3 {[%clk 00:07:08]}
{[%emt 00:00:29]} Ba6 {[%clk 00:31:42]} {[%emt 00:00:19]} 18. Nd3 {[%clk
00:06:25]} {[%emt 00:01:14]} d5 {[%clk 00:30:37]} {[%emt 00:01:34]} 19. e5
{[%clk 00:06:36]} {[%emt 00:00:18]} Nfe8 {[%clk 00:30:37]} {[%emt 00:00:31]} 20.
O-O {[%clk 00:06:19]} {[%emt 00:00:47]} Ng7 {[%clk 00:29:37]} {[%emt 00:01:30]}
21. Bh6 {[%clk 00:04:36]} {[%emt 00:02:13]} Nce6 {[%clk 00:27:23]} {[%emt
00:02:44]} 22. Ne2 {[%clk 00:04:46]} {[%emt 00:00:20]} Qd8 {[%clk 00:26:26]}
{[%emt 00:01:27]} 23. h4 {[%clk 00:04:26]} {[%emt 00:00:50]} Kh7 {[%clk
00:24:02]} {[%emt 00:02:53]} 24. Bh3 {[%clk 00:03:16]} {[%emt 00:01:41]} Bxd3
{[%clk 00:23:16]} {[%emt 00:01:17]} 25. cxd3 {[%clk 00:03:30]} {[%emt
00:00:15]} b6 {[%clk 00:20:56]} {[%emt 00:02:50]} 26. a6 {[%clk 00:03:05]}
{[%emt 00:00:56]} c5 {[%clk 00:17:48]} {[%emt 00:03:38]} 27. Bxe6 {[%clk
00:01:56]} {[%emt 00:01:39]} fxe6 {[%clk 00:16:17]} {[%emt 00:02:01]} 28. Bxg7
{[%clk 00:01:21]} {[%emt 00:01:04]} Kxg7 {[%clk 00:16:25]} {[%emt 00:00:22]} 29.
Rxf8 {[%clk 00:01:26]} {[%emt 00:00:25]} Bxf8 {[%clk 00:16:15]} {[%emt
00:00:39]} 30. dxc5 {[%emt 00:00:32]} bxc5 {[%clk 00:16:01]} {[%emt 00:00:43]}
31. d4 {[%clk 00:00:48]} {[%emt 00:01:08]} cxd4 {[%clk 00:12:51]} {[%emt
00:03:41]} 32. Nf4 {[%clk 00:01:12]} {[%emt 00:00:05]} Qe8 {[%clk 00:12:52]}
{[%emt 00:00:29]} 33. Qxd4 {[%clk 00:00:39]} {[%emt 00:01:03]} Kh7 {[%clk
00:11:58]} {[%emt 00:01:23]} 34. Rc1 {[%clk 00:01:00]} {[%emt 00:00:10]} Qf7
{[%clk 00:11:42]} {[%emt 00:00:46]} 35. Rc6 {[%clk 00:00:45]} {[%emt 00:00:45]}
Re8 {[%clk 00:11:33]} {[%emt 00:00:39]} 36. Qd3 {[%clk 00:00:40]} {[%emt
00:00:36]} Bg7 {[%clk 00:11:00]} {[%emt 00:01:03]} 37. Qc3 {[%clk 00:00:47]}
{[%emt 00:00:23]} Re7 {[%clk 00:10:01]} {[%emt 00:01:28]} 38. b4 {[%clk
00:00:35]} {[%emt 00:00:42]} Qf5 {[%clk 00:10:16]} {[%emt 00:00:15]} 39. Rc7
{[%clk 00:00:40]} {[%emt 00:00:25]} Rxc7 {[%clk 00:04:02]} {[%emt 00:06:44]} 40.
Qxc7 {[%clk 00:01:07]} {[%emt 00:00:04]} Qb1+ {[%clk 00:04:24]} {[%emt
00:00:07]} 41. Kh2 {[%clk 00:01:15]} {[%emt 00:00:22]} Qb2+ {[%clk 00:04:19]}
{[%emt 00:00:35]} 42. Kh3 {[%clk 00:01:12]} {[%emt 00:00:34]} Qb1 {[%clk
00:04:32]} {[%emt 00:00:17]} 43. Kh2 {[%clk 00:01:12]} {[%emt 00:00:29]} Qb2+
{[%clk 00:04:54]} {[%emt 00:00:08]} 44. Kh3 {[%clk 00:00:44]} {[%emt 00:00:58]}
Qb1 {[%clk 00:04:56]} {[%emt 00:00:28]} 1/2-1/2

[Event "TOP 12 FEMININ 2022 - Phase 1"]
[Site "MULHOUSE, France"]
[Date "2022.04.09"]
[Round "3.24"]
[White "AFRAOUI CLI, Anaelle"]
[Black "BELLAHCENE BIS, Sofia"]
[Result "1-0"]
[TimeControl "90 min +30 secondes par coup"]
[WhiteElo "2108"]
[BlackElo "1840"]

1. e4 {[%clk 01:30:57]} {[%emt 00:00:03]} c5 {[%clk 01:30:37]} {[%emt
00:00:25]} 2. Nf3 {[%clk 01:31:20]} {[%emt 00:00:07]} e6 {[%clk 01:30:39]}
{[%emt 00:00:27]} 3. d4 {[%clk 01:31:23]} {[%emt 00:00:26]} cxd4 {[%clk
01:30:58]} {[%emt 00:00:11]} 4. Nxd4 {[%clk 01:31:45]} {[%emt 00:00:07]} Nf6
{[%clk 01:30:32]} {[%emt 00:00:57]} 5. Nc3 {[%clk 01:31:40]} {[%emt 00:00:36]}
Nc6 {[%clk 01:30:44]} {[%emt 00:00:17]} 6. Ndb5 {[%clk 01:31:10]} {[%emt
00:00:59]} Bc5 {[%clk 01:30:21]} {[%emt 00:00:54]} 7. Bf4 {[%clk 01:20:13]}
{[%emt 00:11:27]} O-O {[%clk 01:29:26]} {[%emt 00:01:25]} 8. Be2 {[%clk
01:17:41]} {[%emt 00:03:02]} a6 {[%clk 01:19:29]} {[%emt 00:10:27]} 9. Bd6
{[%clk 01:13:40]} {[%emt 00:04:31]} Qb6 {[%clk 01:13:18]} {[%emt 00:06:40]} 10.
Bxc5 {[%clk 00:54:05]} {[%emt 00:20:06]} Qxc5 {[%clk 01:13:40]} {[%emt
00:00:08]} 11. Nd6 {[%clk 00:51:18]} {[%emt 00:03:17]} b5 {[%clk 01:09:42]}
{[%emt 00:04:28]} 12. O-O {[%clk 00:49:22]} {[%emt 00:02:25]} Nd4 {[%clk
01:07:31]} {[%emt 00:02:42]} 13. Nxc8 {[%clk 00:49:23]} {[%emt 00:00:28]} Raxc8
{[%clk 01:06:24]} {[%emt 00:01:38]} 14. Bd3 {[%clk 00:48:10]} {[%emt 00:01:42]}
e5 {[%clk 01:02:03]} {[%emt 00:04:52]} 15. Nd5 {[%clk 00:46:08]} {[%emt
00:02:32]} Nxe4 {[%clk 00:50:28]} {[%emt 00:12:05]} 16. Bxe4 {[%clk 00:38:27]}
{[%emt 00:08:10]} f5 {[%clk 00:50:50]} {[%emt 00:00:09]} 17. c3 {[%clk
00:32:38]} {[%emt 00:06:19]} fxe4 {[%clk 00:49:49]} {[%emt 00:01:31]} 18. Ne3
{[%clk 00:32:42]} {[%emt 00:00:25]} Nf5 {[%clk 00:46:07]} {[%emt 00:04:13]} 19.
Nxf5 {[%clk 00:32:04]} {[%emt 00:01:09]} Rxf5 {[%clk 00:46:29]} {[%emt
00:00:07]} 20. Qxd7 {[%clk 00:32:30]} {[%emt 00:00:03]} Rcf8 {[%clk 00:46:56]}
{[%emt 00:00:04]} 21. Qd2 {[%clk 00:32:06]} {[%emt 00:00:53]} Qc4 {[%clk
00:45:16]} {[%emt 00:02:11]} 22. Qe3 {[%clk 00:28:32]} {[%emt 00:04:03]} Qd3
{[%clk 00:39:02]} {[%emt 00:06:43]} 23. Rae1 {[%clk 00:28:40]} {[%emt
00:00:23]} Rd8 {[%clk 00:38:51]} {[%emt 00:00:40]} 24. Qc1 {[%clk 00:21:11]}
{[%emt 00:08:01]} Rdf8 {[%clk 00:34:56]} {[%emt 00:04:24]} 25. Re3 {[%clk
00:20:13]} {[%emt 00:01:29]} Qc4 {[%clk 00:34:53]} {[%emt 00:00:31]} 26. b3
{[%clk 00:19:55]} {[%emt 00:00:50]} Qf7 {[%clk 00:33:42]} {[%emt 00:01:40]} 27.
Qe1 {[%clk 00:19:47]} {[%emt 00:00:38]} Rg5 {[%clk 00:26:05]} {[%emt 00:08:07]}
28. g3 {[%clk 00:17:45]} {[%emt 00:02:33]} Qh5 {[%clk 00:21:46]} {[%emt
00:04:49]} 29. Rxe4 {[%clk 00:17:04]} {[%emt 00:01:11]} Rf6 {[%clk 00:20:09]}
{[%emt 00:02:07]} 30. Qd1 {[%clk 00:15:11]} {[%emt 00:02:23]} Qxd1 {[%clk
00:15:32]} {[%emt 00:05:06]} 31. Rxd1 {[%clk 00:15:38]} {[%emt 00:00:03]} Rf3
{[%clk 00:15:14]} {[%emt 00:00:48]} 32. c4 {[%clk 00:15:33]} {[%emt 00:00:36]}
bxc4 {[%clk 00:13:22]} {[%emt 00:02:22]} 33. Rxc4 {[%clk 00:15:58]} Rgf5 {[%clk
00:13:27]} {[%emt 00:00:29]} 34. Rd8+ {[%clk 00:15:50]} Kf7 {[%clk 00:13:42]}
{[%emt 00:00:53]} 35. Rc7+ {[%clk 00:15:41]} Kg6 {[%clk 00:13:40]} {[%emt
00:01:12]} 36. Rd6+ {[%clk 00:14:29]} {[%emt 00:01:41]} Rf6 {[%clk 00:12:49]}
{[%emt 00:01:21]} 37. Rdd7 {[%clk 00:14:46]} Kf5 {[%clk 00:11:19]} {[%emt
00:02:14]} 38. Rxg7 {[%clk 00:14:57]} Ke4 {[%clk 00:11:42]} {[%emt 00:00:25]}
39. Rc4+ {[%clk 00:14:09]} Kd5 {[%clk 00:11:38]} {[%emt 00:01:52]} 40. Rd7+
{[%emt 00:01:44]} Ke6 {[%clk 00:12:00]} {[%emt 00:00:06]} 41. Rd2 {[%emt
00:00:25]} Kf5 {[%clk 00:11:29]} {[%emt 00:00:40]} 42. Re2 {[%clk 00:12:18]} h5
{[%clk 00:11:29]} 43. Ree4 {[%clk 00:12:18]} Re6 {[%clk 00:11:29]} 44. Kg2
{[%clk 00:12:18]} Rc3 {[%clk 00:11:29]} 45. f4 {[%clk 00:12:18]} exf4 {[%clk
00:11:29]} 46. Rxf4+ {[%clk 00:12:18]} 1-0